fUST/lending_fUST_20250925
["ID","MTS","AMOUNT","RATE_DAILY","PERIOD"]
[387608799,1758787222455,-412.98835579,0.00019351,2]
[387608800,1758787222490,-480.0,0.00019351,2]
[387608801,1758787222524,-480.0,0.00019351,2]
[387608802,1758787222564,-480.0,0.00019351,2]
[387608803,1758787222596,-190.89602151,0.00019351,2]
[387608804,1758787222628,-480.0,0.00019351,2]
[387608805,1758787222662,-488.86,0.00019351,2]
[387608806,1758787222692,-202.32826478,0.00019351,2]
[387608807,1758787222721,-208.33950277,0.00019351,2]
[387608808,1758787222754,-500.0,0.00019351,2]
[387608809,1758787222784,-207.83568324,0.00019351,2]
[387608810,1758787222817,-277.51434382,0.00019351,2]
[387608811,1758787223090,-222.48565618,0.00019351,2]
[387608812,1758787223123,-500.0,0.00019351,2]
[387608813,1758787223157,-500.0,0.00019351,2]
[387608814,1758787223189,-500.0,0.00019351,2]
[387608815,1758787223223,-500.0,0.00019351,2]
[387608816,1758787223257,-500.0,0.00019351,2]
[387608817,1758787223290,-332.92300063,0.00019351,2]
[387608818,1758787223324,-500.0,0.00019351,2]
[387608819,1758787223356,-500.0,0.00019351,2]
[387608820,1758787223389,-500.0,0.00019351,2]
[387608821,1758787223422,-389.19268638,0.00019351,2]
[387608822,1758787223624,-110.80731362,0.00019351,2]
[387608823,1758787223663,-611.2862873,0.00019351,2]
[387608824,1758787223696,-377.53273819,0.00019351,2]
[387608825,1758787223730,-500.0,0.00019351,2]
[387608826,1758787223766,-500.0,0.00019351,2]
[387608827,1758787223801,-500.0,0.00019351,2]
[387608828,1758787223835,-500.0,0.00019351,2]
[387608829,1758787223868,-500.0,0.00019351,2]
[387608830,1758787223902,-500.0,0.00019351,2]
[387608831,1758787223935,-427.9004011,0.00019351,2]
[387608832,1758787223969,-444.95651958,0.00019351,2]
[387608833,1758787224076,-55.04348042,0.00019351,2]
[387608834,1758787224109,-212.51919423,0.00019351,2]
[387608839,1758787231821,480.0,0.00019351,2]
[387608840,1758787235618,-312.87635134,0.00019352,2]
[387608841,1758787236049,480.0,0.00019351,2]
[387608842,1758787239924,-317.45237909,0.00019352,2]
[387608843,1758787244160,-209.67126957,0.00019352,2]
[387608845,1758787246875,-160.0,0.00019352,2]
[387608846,1758787249208,937.39,0.00019345,2]
[387608847,1758787249416,480.0,0.00019347,2]
[387608848,1758787253026,429.10296742,0.00019346,2]
[387608849,1758787254760,487.29431549,0.0001935,2]
[387608851,1758787259574,480.0,0.00019345,2]
[387608852,1758787263617,480.0,0.00019345,2]
[387608853,1758787271141,480.0,0.00019351,2]
[387608856,1758787276714,480.0,0.00019351,2]
[387608857,1758787276781,480.0,0.0001935,2]
[387608858,1758787277028,1980.04,0.00019347,2]
[387608859,1758787282127,508.82,0.00019345,2]
[387608861,1758787287801,480.0,0.0001935,2]
[387608863,1758787288785,480.0,0.00019347,2]
[387608864,1758787296564,322.23736779,0.00019351,2]
[387608865,1758787296591,185.41263221,0.00019351,2]
[387608867,1758787322757,480.0,0.00019347,2]
[387608868,1758787325405,482.92753675,0.0001935,2]
[387608869,1758787325952,480.0,0.00019351,2]
[387608870,1758787327178,405.71756841,0.0001935,2]
[387608872,1758787340741,480.0,0.0001935,2]
[387608873,1758787344060,480.0,0.00019346,2]
[387608874,1758787350795,480.0,0.0001935,2]
[387608875,1758787352145,1158.0534116,0.0001935,2]
[387608876,1758787359306,480.0,0.0001935,2]
[387608877,1758787365035,480.0,0.00019347,2]
[387608878,1758787365092,593.39,0.00019345,2]
[387608879,1758787367767,480.0,0.00019345,2]
[387608880,1758787369328,480.0,0.0001935,2]
[387608881,1758787384855,480.0,0.0001935,2]
[387608882,1758787394278,2374.50885103,0.00019319,2]
[387608883,1758787394303,161.71394019,0.00019319,2]
[387608884,1758787398112,480.0,0.0001935,2]
[387608885,1758787402067,480.0,0.0001935,2]
[387608886,1758787403355,480.0,0.00019351,2]
[387608887,1758787403986,625.93806075,0.0001935,2]
[387608888,1758787405012,543.91508017,0.00019345,2]
[387608889,1758787406712,480.0,0.00019347,2]
[387608890,1758787431871,1897.53,0.00019346,2]
[387608891,1758787444453,480.0,0.0001935,2]
[387608892,1758787450106,480.0,0.0001935,2]
[387608893,1758787457974,524.52,0.00019351,2]
[387608894,1758787470614,534.238242,0.00018718,2]
[387608895,1758787483433,480.0,0.00019346,2]
[387608896,1758787483888,480.0,0.00019351,2]
[387608897,1758787483979,480.0,0.00019345,2]
[387608898,1758787488751,158.15226016,0.0001935,2]
[387608899,1758787494322,486.5,0.0001935,2]
[387608900,1758787494793,480.0,0.0001935,2]
[387608901,1758787509688,267.50241673,0.00019347,2]
[387608902,1758787509714,212.49758327,0.00019347,2]
[387608903,1758787515632,200.130584,0.00018718,2]
[387608908,1758787535520,-204.31929734,0.00019352,2]
[387608910,1758787537334,601.3734267,0.00019351,2]
[387608912,1758787538440,-244.36573667,0.00019352,2]
[387608914,1758787539034,898.33,0.00019351,2]
[387608915,1758787540829,480.0,0.0001935,2]
[387608916,1758787544540,-217.31496599,0.00019352,2]
[387608917,1758787547027,480.0,0.00019351,2]
[387608918,1758787556550,480.0,0.00019347,2]
[387608919,1758787558270,487.62,0.00019351,2]
[387608920,1758787573721,480.0,0.00019346,2]
[387608921,1758787587740,541.94808202,0.00019351,2]
[387608922,1758787591921,480.0,0.00019346,2]
[387608923,1758787600980,480.0,0.0001935,2]
[387608924,1758787619100,-1017.56474723,0.00019352,2]
[387608925,1758787630317,480.0,0.00019351,2]
[387608926,1758787633361,500.0,0.00019351,2]
[387608927,1758787633485,500.0,0.00019351,2]
[387608928,1758787633780,500.0,0.00019351,2]
[387608929,1758787633968,500.0,0.00019351,2]
[387608930,1758787634004,599.53028077,0.00019351,2]
[387608931,1758787634181,500.0,0.00019351,2]
[387608932,1758787634293,500.0,0.00019351,2]
[387608933,1758787637828,98.58004324,0.00019351,2]
[387608934,1758787637855,381.41995676,0.00019351,2]
[387608935,1758787637928,519.21,0.00019351,2]
[387608936,1758787637961,480.0,0.00019347,2]
[387608938,1758787646361,480.0,0.00019351,2]
[387608939,1758787657557,502.67,0.0001935,2]
[387608940,1758787662033,480.0,0.00019351,2]
[387608941,1758787664748,1690.81519416,0.000193,2]
[387608942,1758787674793,480.0,0.00019351,2]
[387608943,1758787676505,666.0,0.00018736,2]
[387608944,1758787682369,182.65772004,0.0001935,2]
[387608945,1758787684917,296.8550685,0.0001935,2]
[387608946,1758787685775,480.0,0.00019346,2]
[387608947,1758787686238,480.0,0.0001935,2]
[387608948,1758787690770,480.0,0.0001935,2]
[387608949,1758787695464,480.0,0.0001935,2]
[387608950,1758787699009,731.6202129,0.000193,2]
[387608951,1758787700691,480.0,0.00019346,2]
[387608952,1758787714574,1818.47,0.00019345,2]
[387608953,1758787720191,480.0,0.00019351,2]
[387608954,1758787721536,270.9218044,0.00019345,2]
[387608955,1758787721562,209.0781956,0.00019345,2]
[387608956,1758787723882,480.0,0.00019351,2]
[387608957,1758787727297,480.0,0.00019351,2]
[387608958,1758787730142,480.0,0.00019351,2]
[387608959,1758787739477,860.9,0.0001935,2]
[387608960,1758787740772,480.0,0.0001935,2]
[387608961,1758787744893,480.0,0.0001935,2]
[387608962,1758787746938,480.0,0.0001935,2]
[387608963,1758787757353,480.0,0.00019351,2]
[387608964,1758787762600,480.0,0.0001935,2]
[387608965,1758787769282,480.0,0.00019351,2]
[387608966,1758787769462,480.0,0.00019345,2]
[387608967,1758787770982,300.0,0.000193,2]
[387608968,1758787772098,-672.10851652,0.00019352,2]
[387608969,1758787776544,393.048705,0.00018777,2]
[387608970,1758787777995,480.0,0.00019346,2]
[387608972,1758787782968,300.0,0.000193,2]
[387608973,1758787791934,480.0,0.00019347,2]
[387608974,1758787794088,300.0,0.000193,2]
[387608975,1758787805268,300.0,0.000193,2]
[387608976,1758787817083,480.0,0.00019351,2]
[387608977,1758787817138,300.0,0.000193,2]
[387608978,1758787828543,503.53162253,0.0001935,2]
[387608979,1758787830186,190.35351955,0.000193,2]
[387609002,1758787832617,-402.92,0.00019352,2]
[387609003,1758787832629,-671.96876116,0.00019352,2]
[387609058,1758787836485,103.09795732,0.0001935,2]
[387609059,1758787836514,376.90204268,0.0001935,2]
[387609060,1758787836813,480.0,0.0001935,2]
[387609084,1758787838566,-357.39757858,0.00019352,2]
[387609087,1758787838578,-1041.5700025,0.00019352,2]
[387609097,1758787838671,-9057.05584838,0.00019352,2]
[387609100,1758787838683,-355113.41454563,0.00019352,2]
[387609102,1758787838692,-500.0,0.000194,2]
[387609104,1758787838702,-480.0,0.00019619,2]
[387609106,1758787838711,-480.0,0.00019619,2]
[387609107,1758787838720,-1818.47,0.00019619,2]
[387609109,1758787838729,-480.0,0.00019619,2]
[387609111,1758787838738,-480.0,0.0001962,2]
[387609113,1758787838747,-480.0,0.0001962,2]
[387609115,1758787838757,-480.0,0.0001962,2]
[387609117,1758787838766,-480.0,0.00019621,2]
[387609120,1758787838776,-480.0,0.00019621,2]
[387609122,1758787838786,-486.23906902,0.00019624,2]
[387609124,1758787838795,-480.0,0.00019624,2]
[387609125,1758787838806,-502.67,0.00019624,2]
[387609127,1758787838815,-480.0,0.00019624,2]
[387609129,1758787838824,-454.87185314,0.00019624,2]
[387609131,1758787838834,-860.9,0.00019624,2]
[387609134,1758787838844,-480.0,0.00019624,2]
[387609136,1758787838853,-480.0,0.00019624,2]
[387609138,1758787838863,-480.0,0.00019624,2]
[387609140,1758787838873,-480.0,0.00019624,2]
[387609141,1758787838884,-531.38138659,0.00019624,2]
[387609144,1758787838895,-480.0,0.00019625,2]
[387609146,1758787838904,-519.21,0.00019625,2]
[387609147,1758787838914,-480.0,0.00019625,2]
[387609149,1758787838924,-480.0,0.00019625,2]
[387609152,1758787838935,-480.0,0.00019625,2]
[387609153,1758787838944,-480.0,0.00019625,2]
[387609155,1758787838954,-480.0,0.00019625,2]
[387609158,1758787838966,-480.0,0.00019625,2]
[387609160,1758787838975,-480.0,0.00019625,2]
[387609162,1758787838985,-480.0,0.00019625,2]
[387609164,1758787838995,-480.0,0.00019625,2]
[387609166,1758787839005,-501.69416085,0.00019673,2]
[387609168,1758787839015,-500.0,0.00019673,2]
[387609170,1758787839025,-248.49,0.00019893,2]
[387609172,1758787839034,-480.0,0.00019893,2]
[387609174,1758787839046,-1818.47,0.00019893,2]
[387609176,1758787839058,-480.0,0.00019893,2]
[387609178,1758787839067,-480.0,0.00019894,2]
[387609180,1758787839078,-480.0,0.00019894,2]
[387609182,1758787839087,-480.0,0.00019894,2]
[387609184,1758787839096,-247.43859374,0.00019895,2]
[387609186,1758787839106,-151.0,0.00019895,2]
[387609188,1758787839116,-151.0,0.00019895,2]
[387609190,1758787839125,-500.0,0.00019895,2]
[387609192,1758787839134,-151.89653285,0.00019895,2]
[387609194,1758787839144,-480.0,0.00019895,2]
[387609196,1758787839154,-480.0,0.00019898,2]
[387609198,1758787839164,-502.67,0.00019898,2]
[387609200,1758787839173,-480.0,0.00019898,2]
[387609202,1758787839182,-860.9,0.00019898,2]
[387609204,1758787839191,-520.0,0.00019898,2]
[387609206,1758787839201,-480.0,0.00019898,2]
[387609208,1758787839211,-480.0,0.00019898,2]
[387609210,1758787839220,-480.0,0.00019899,2]
[387609212,1758787839230,-519.21,0.00019899,2]
[387609214,1758787839239,-448.23248801,0.00019899,2]
[387609215,1758787839248,-480.0,0.00019899,2]
[387609217,1758787839258,-480.0,0.00019899,2]
[387609220,1758787839268,-480.0,0.00019899,2]
[387609221,1758787839280,-480.0,0.00019899,2]
[387609224,1758787839290,-480.0,0.00019899,2]
[387609226,1758787839299,-480.0,0.00019899,2]
[387609227,1758787839308,-279.24377373,0.00019899,2]
[387609229,1758787839318,-480.0,0.00019899,2]
[387609231,1758787839328,-847.82771854,0.000199,2]
[387609232,1758787839337,-500.0,0.00019973,2]
[387609233,1758787839346,-500.0,0.00019973,2]
[387609234,1758787839355,-571.63619755,0.00019973,2]
[387609235,1758787839364,-500.0,0.00019973,2]
[387609236,1758787839373,-505.20370892,0.00019973,2]
[387609237,1758787839382,-432.43637156,0.00019973,2]
[387609238,1758787839392,-500.0,0.00019973,2]
[387609239,1758787839401,-100000.0,0.0001999,2]
[387609240,1758787839410,-480.0,0.00020167,2]
[387609241,1758787839419,-1818.47,0.00020167,2]
[387609242,1758787839428,-480.0,0.00020167,2]
[387609244,1758787839437,-480.0,0.00020168,2]
[387609246,1758787839447,-480.0,0.00020168,2]
[387609248,1758787839456,-480.0,0.00020168,2]
[387609250,1758787839466,-151.0,0.00020169,2]
[387609252,1758787839475,-151.0,0.00020169,2]
[387609254,1758787839484,-526.44835605,0.00020169,2]
[387609256,1758787839494,-480.0,0.00020169,2]
[387609258,1758787839504,-480.0,0.00020172,2]
[387609261,1758787839514,-502.67,0.00020172,2]
[387609263,1758787839524,-480.0,0.00020172,2]
[387609265,1758787839534,-860.9,0.00020172,2]
[387609267,1758787839544,-480.0,0.00020172,2]
[387609269,1758787839555,-480.0,0.00020172,2]
[387609271,1758787839564,-480.0,0.00020173,2]
[387609273,1758787839575,-519.21,0.00020173,2]
[387609275,1758787839584,-480.0,0.00020173,2]
[387609276,1758787839594,-480.0,0.00020173,2]
[387609279,1758787839603,-480.0,0.00020173,2]
[387609280,1758787839613,-480.0,0.00020173,2]
[387609282,1758787839623,-480.0,0.00020173,2]
[387609285,1758787839633,-480.0,0.00020173,2]
[387609286,1758787839643,-480.0,0.00020173,2]
[387609289,1758787839653,-1000.0,0.00020221,2]
[387609291,1758787839662,-340.42,0.00020341,2]
[387609293,1758787839671,-480.0,0.00020441,2]
[387609294,1758787839681,-1818.47,0.00020441,2]
[387609297,1758787839690,-480.0,0.00020441,2]
[387609299,1758787839700,-480.0,0.00020442,2]
[387609300,1758787839708,-480.0,0.00020442,2]
[387609302,1758787839718,-480.0,0.00020442,2]
[387609304,1758787839727,-198.87602421,0.00020443,2]
[387609307,1758787839737,-209.83671391,0.00020443,2]
[387609309,1758787839746,-480.0,0.00020443,2]
[387609311,1758787839756,-480.0,0.00020446,2]
[387609312,1758787839765,-502.67,0.00020446,2]
[387609315,1758787839774,-480.0,0.00020446,2]
[387609317,1758787839783,-860.9,0.00020446,2]
[387609328,1758787839881,-480.0,0.00020446,2]
[387609330,1758787839896,-480.0,0.00020446,2]
[387609332,1758787839906,-480.0,0.00020447,2]
[387609334,1758787839916,-519.21,0.00020447,2]
[387609336,1758787839927,-480.0,0.00020447,2]
[387609338,1758787839937,-480.0,0.00020447,2]
[387609340,1758787839946,-480.0,0.00020447,2]
[387609342,1758787839955,-480.0,0.00020447,2]
[387609344,1758787839967,-480.0,0.00020447,2]
[387609346,1758787839977,-480.0,0.00020447,2]
[387609348,1758787839986,-480.0,0.00020447,2]
[387609350,1758787839995,-990.54451475,0.00020496,2]
[387609352,1758787840004,-1000.0,0.00020521,2]
[387609354,1758787840014,-500.0,0.00020521,2]
[387609356,1758787840023,-1000.0,0.00020521,2]
[387609358,1758787840032,-731.62021286,0.00020675,2]
[387609360,1758787840042,-480.0,0.00020715,2]
[387609362,1758787840052,-1818.47,0.00020715,2]
[387609364,1758787840061,-480.0,0.00020715,2]
[387609366,1758787840071,-480.0,0.00020716,2]
[387609368,1758787840080,-480.0,0.00020716,2]
[387609371,1758787840090,-480.0,0.00020716,2]
[387609373,1758787840099,-480.0,0.00020717,2]
[387609375,1758787840108,-480.0,0.0002072,2]
[387609377,1758787840117,-502.67,0.0002072,2]
[387609379,1758787840127,-480.0,0.0002072,2]
[387609381,1758787840136,-860.9,0.0002072,2]
[387609383,1758787840145,-480.0,0.0002072,2]
[387609385,1758787840155,-480.0,0.00020721,2]
[387609387,1758787840164,-519.21,0.00020721,2]
[387609389,1758787840174,-480.0,0.00020721,2]
[387609391,1758787840184,-480.0,0.00020721,2]
[387609394,1758787840193,-480.0,0.00020721,2]
[387609397,1758787840203,-480.0,0.00020721,2]
[387609399,1758787840213,-184.800535,0.00020721,2]
[387609402,1758787840222,-480.0,0.00020721,2]
[387609404,1758787840231,-480.0,0.00020721,2]
[387609406,1758787840241,-506.92875789,0.0002076,2]
[387609408,1758787840250,-500.0,0.0002076,2]
[387609410,1758787840259,-500.0,0.0002076,2]
[387609412,1758787840269,-1284.80352331,0.00020768,2]
[387609414,1758787840278,-150.0,0.00020774,2]
[387609416,1758787840288,-847.82771825,0.00020972,2]
[387609418,1758787840297,-480.0,0.00020989,2]
[387609420,1758787840307,-1818.47,0.00020989,2]
[387609422,1758787840316,-480.0,0.00020989,2]
[387609424,1758787840325,-480.0,0.0002099,2]
[387609426,1758787840335,-480.0,0.0002099,2]
[387609428,1758787840344,-480.0,0.0002099,2]
[387609430,1758787840354,-480.0,0.00020991,2]
[387609432,1758787840363,-480.0,0.00020994,2]
[387609434,1758787840372,-502.67,0.00020994,2]
[387609436,1758787840383,-480.0,0.00020994,2]
[387609438,1758787840395,-860.9,0.00020994,2]
[387609439,1758787840405,-480.0,0.00020994,2]
[387609441,1758787840415,-519.21,0.00020995,2]
[387609444,1758787840424,-480.0,0.00020995,2]
[387609446,1758787840434,-480.0,0.00020995,2]
[387609447,1758787840444,-480.0,0.00020995,2]
[387609449,1758787840453,-480.0,0.00020995,2]
[387609451,1758787840462,-480.0,0.00020995,2]
[387609453,1758787840471,-480.0,0.00020995,2]
[387609456,1758787840481,-480.0,0.00020995,2]
[387609457,1758787840491,-326.53650875,0.00021068,2]
[387609460,1758787840501,-1500.0,0.00021068,2]
[387609462,1758787840511,-480.0,0.00021263,2]
[387609464,1758787840520,-1818.47,0.00021263,2]
[387609466,1758787840530,-480.0,0.00021264,2]
[387609468,1758787840540,-480.0,0.00021264,2]
[387609470,1758787840550,-480.0,0.00021264,2]
[387609472,1758787840560,-480.0,0.00021265,2]
[387609474,1758787840569,-480.0,0.00021268,2]
[387609476,1758787840579,-502.67,0.00021268,2]
[387609478,1758787840589,-480.0,0.00021268,2]
[387609480,1758787840598,-860.9,0.00021268,2]
[387609482,1758787840608,-480.0,0.00021268,2]
[387609484,1758787840618,-519.21,0.00021269,2]
[387609486,1758787840627,-480.0,0.00021269,2]
[387609488,1758787840637,-480.0,0.00021269,2]
[387609490,1758787840646,-480.0,0.00021269,2]
[387609492,1758787840655,-539.8558567,0.00021269,2]
[387609494,1758787840665,-480.0,0.00021269,2]
[387609496,1758787840674,-480.0,0.00021269,2]
[387609498,1758787840683,-480.0,0.00021269,2]
[387609500,1758787840692,-500.0,0.00021285,2]
[387609502,1758787840702,-500.0,0.00021285,2]
[387609504,1758787840711,-500.0,0.00021285,2]
[387609506,1758787840721,-406.79269329,0.00021285,2]
[387609508,1758787840730,-162.265671,0.00021308,2]
[387609510,1758787840739,-1000.0,0.00021308,2]
[387609512,1758787840749,-500.77160438,0.00021523,2]
[387609514,1758787840759,-500.0,0.00021523,2]
[387609516,1758787840769,-500.0,0.00021526,2]
[387609518,1758787840778,-480.0,0.00021537,2]
[387609520,1758787840788,-1818.47,0.00021537,2]
[387609522,1758787840797,-480.0,0.00021538,2]
[387609524,1758787840808,-480.0,0.00021538,2]
[387609526,1758787840817,-480.0,0.00021538,2]
[387609528,1758787840827,-480.0,0.00021539,2]
[387609530,1758787840837,-500.0,0.00021542,2]
[387609532,1758787840847,-480.0,0.00021542,2]
[387609534,1758787840858,-502.67,0.00021542,2]
[387609536,1758787840867,-521.83599742,0.00021542,2]
[387609538,1758787840880,-860.9,0.00021542,2]
[387609540,1758787840889,-480.0,0.00021542,2]
[387609542,1758787840899,-519.21,0.00021543,2]
[387609544,1758787840909,-480.0,0.00021543,2]
[387609546,1758787840919,-480.0,0.00021543,2]
[387609549,1758787840928,-480.0,0.00021543,2]
[387609552,1758787840938,-480.0,0.00021543,2]
[387609555,1758787840947,-480.0,0.00021543,2]
[387609558,1758787840958,-480.0,0.00021811,2]
[387609561,1758787840968,-1818.47,0.00021811,2]
[387609564,1758787840977,-480.0,0.00021812,2]
[387609566,1758787840986,-480.0,0.00021812,2]
[387609568,1758787840995,-480.0,0.00021812,2]
[387609570,1758787841005,-480.0,0.00021813,2]
[387609572,1758787841014,-480.0,0.00021816,2]
[387609574,1758787841024,-502.67,0.00021816,2]
[387609576,1758787841033,-860.9,0.00021816,2]
[387609578,1758787841044,-480.0,0.00021816,2]
[387609580,1758787841054,-519.21,0.00021817,2]
[387609582,1758787841063,-480.0,0.00021817,2]
[387609584,1758787841073,-480.0,0.00021817,2]
[387609586,1758787841082,-480.0,0.00021817,2]
[387609588,1758787841091,-480.0,0.00021817,2]
[387609590,1758787841101,-480.0,0.00021817,2]
[387609591,1758787841110,-504.83976007,0.00021833,2]
[387609594,1758787841121,-1000.0,0.00021833,2]
[387609596,1758787841131,-1000.0,0.00021833,2]
[387609597,1758787841141,-500.0,0.00021856,2]
[387609600,1758787841150,-160.0,0.00021867,2]
[387609602,1758787841160,-152.58499236,0.00021918,2]
[387609603,1758787841169,-160.0,0.00021921,2]
[387609605,1758787841179,-233.66602051,0.00021921,2]
[387609608,1758787841189,-160.0,0.00021921,2]
[387609609,1758787841198,-160.0,0.00021921,2]
[387609612,1758787841208,-160.0,0.00021921,2]
[387609614,1758787841218,-164.17,0.00022,2]
[387609616,1758787841227,-847.82771825,0.00022044,2]
[387609618,1758787841237,-731.62021286,0.0002205,2]
[387609619,1758787841246,-501.7698393,0.00022071,2]
[387609621,1758787841256,-238.57457338,0.00022071,2]
[387609623,1758787841266,-418.60072527,0.00022071,2]
[387609626,1758787841276,-504.46953015,0.00022071,2]
[387609628,1758787841285,-500.0,0.00022071,2]
[387609629,1758787841294,-369.53540277,0.00022074,2]
[387609632,1758787841305,-480.0,0.00022085,2]
[387609634,1758787841314,-1818.47,0.00022085,2]
[387609636,1758787841323,-525.07877521,0.00022086,2]
[387609638,1758787841332,-480.0,0.00022086,2]
[387609639,1758787841341,-480.0,0.00022086,2]
[387609641,1758787841350,-480.0,0.00022087,2]
[387609643,1758787841359,-480.0,0.0002209,2]
[387609646,1758787841370,-502.67,0.0002209,2]
[387609648,1758787841380,-860.9,0.0002209,2]
[387609649,1758787841389,-480.0,0.0002209,2]
[387609652,1758787841399,-519.21,0.00022091,2]
[387609654,1758787841408,-480.0,0.00022091,2]
[387609656,1758787841418,-536.34106293,0.00022091,2]
[387609657,1758787841427,-480.0,0.00022091,2]
[387609660,1758787841437,-480.0,0.00022091,2]
[387609662,1758787841447,-480.0,0.00022091,2]
[387609663,1758787841458,-189.5,0.00022096,3]
[387609665,1758787841472,-501.7140521,0.00022113,2]
[387609667,1758787841481,-200.130584,0.00022143,2]
[387609670,1758787841491,-500.98143617,0.00022292,2]
[387609671,1758787841501,-183.42,0.00022359,2]
[387609674,1758787841511,-1818.47,0.00022359,2]
[387609676,1758787841521,-480.0,0.0002236,2]
[387609677,1758787841531,-597.52475481,0.0002236,2]
[387609679,1758787841541,-473.28,0.00022361,2]
[387609682,1758787841551,-480.0,0.00022364,2]
[387609684,1758787841561,-502.67,0.00022364,2]
[387609686,1758787841571,-860.9,0.00022364,2]
[387609688,1758787841581,-480.0,0.00022364,2]
[387609690,1758787841591,-519.21,0.00022365,2]
[387609692,1758787841600,-480.0,0.00022365,2]
[387609694,1758787841610,-480.0,0.00022365,2]
[387609696,1758787841620,-480.0,0.00022365,2]
[387609698,1758787841629,-365.71303462,0.00022365,2]
[387609699,1758787841638,-1500.0,0.00022381,2]
[387609702,1758787841648,-1500.0,0.00022381,2]
[387609703,1758787841658,-1072.62,0.000224,2]
[387609705,1758787841668,-414.03812162,0.00022415,2]
[387609708,1758787841678,-1818.47,0.00022633,2]
[387609709,1758787841687,-480.0,0.00022634,2]
[387609712,1758787841697,-480.0,0.00022638,2]
[387609714,1758787841707,-502.67,0.00022638,2]
[387609716,1758787841717,-860.9,0.00022638,2]
[387609718,1758787841726,-480.0,0.00022638,2]
[387609719,1758787841736,-519.21,0.00022639,2]
[387609721,1758787841745,-480.0,0.00022639,2]
[387609724,1758787841755,-480.0,0.00022639,2]
[387609725,1758787841764,-480.0,0.00022639,2]
[387609727,1758787841774,-150.0,0.00022662,2]
[387609729,1758787841784,-500.0,0.00022901,2]
[387609732,1758787841793,-1818.47,0.00022907,2]
[387609733,1758787841803,-480.0,0.00022908,2]
[387609736,1758787841813,-171.93,0.00022912,2]
[387609738,1758787841823,-502.67,0.00022912,2]
[387609740,1758787841832,-860.9,0.00022912,2]
[387609742,1758787841842,-480.0,0.00022912,2]
[387609744,1758787841851,-519.21,0.00022913,2]
[387609746,1758787841860,-480.0,0.00022913,2]
[387609748,1758787841870,-480.0,0.00022913,2]
[387609750,1758787841882,-2000.0,0.00022929,2]
[387609752,1758787841893,-500.0,0.00022934,2]
[387609754,1758787841903,-164.17,0.00023,2]
[387609756,1758787841912,-160.0,0.00023,2]
[387609758,1758787841923,-156.0633223,0.00023003,5]
[387609760,1758787841934,-181.98399385,0.00023025,2]
[387609762,1758787841945,-182.56495849,0.00023059,2]
[387609764,1758787841956,-847.82771825,0.00023116,2]
[387609766,1758787841966,-500.0,0.00023151,2]
[387609768,1758787841976,-1818.47,0.00023181,2]
[387609770,1758787841985,-480.0,0.00023182,2]